lending/lending_fUSD_20241025
["ID","MTS","AMOUNT","RATE_DAILY","PERIOD"]
[340787208,1729820309726,483.9,0.00011479,2]
[340787209,1729820481452,5050.0,0.00042742,33]
[340787212,1729820962304,459.7,0.00011763,2]
[340787219,1729821032513,-250.0,0.00013286,2]
[340787220,1729821032523,-250.0,0.00013286,2]
[340787221,1729821032533,-200.0,0.00013339,2]
[340787222,1729821032544,-250.0,0.00013356,2]
[340787223,1729821032553,-300.0,0.00013543,2]
[340787224,1729821032562,-82.63115809,0.00013544,2]
[340787238,1729821038559,-3017.02883535,0.00013544,2]
[340787239,1729821038734,-356.54096334,0.00013544,2]
[340787240,1729821038745,-2188.21250706,0.00013544,2]
[340787241,1729821038757,-13579.65091701,0.00013544,2]
[340787246,1729821040468,-426.768,0.00013544,2]
[340787283,1729821046521,-4249.16761915,0.00013544,2]
[340787284,1729821046530,-170.44,0.00013611,2]
[340787285,1729821046539,-1000.0,0.00013793,2]
[340787286,1729821046549,-150.0,0.00013899,2]
[340787287,1729821046559,-642.536,0.000139,2]
[340787288,1729821046568,-1424.579,0.000139,2]
[340787289,1729821046578,-533.3372,0.000139,2]
[340787290,1729821046587,-173.61636352,0.000139,2]
[340787291,1729821046596,-1000.0,0.0001393,2]
[340787292,1729821046605,-1000.0,0.0001393,2]
[340787293,1729821046614,-776.727,0.0001393,2]
[340787294,1729821046623,-500.0,0.00013973,2]
[340787295,1729821046632,-500.0,0.00013999,2]
[340787296,1729821046643,-384.60724153,0.00013999,2]
[340787297,1729821046652,-25735.22369861,0.00014,2]
[340787298,1729821046687,-7055.478873,0.00014,2]
[340787313,1729821457422,436.71,0.00011875,2]
[340787315,1729821867507,-164.64,0.00024877,30]
[340787316,1729821954336,1056.66676002,0.00042751,120]
[340787317,1729821962879,434.38,0.00011505,2]
[340787318,1729821965231,250.0,0.0001,2]
[340787319,1729821966395,300.0,0.00012,2]
[340787321,1729822183729,164.64,0.00024877,30]
[340787331,1729822231590,-459.25521106,0.000124,2]
[340787332,1729822231602,-582.74478894,0.000124,2]
[340787333,1729822231611,-115.14557169,0.00013212,2]
[340787334,1729822231623,-669.9235744,0.00013212,2]
[340787335,1729822231632,-250.0,0.00013312,2]
[340787336,1729822231642,-273.59,0.00013312,2]
[340787337,1729822231652,-1000.0,0.00013323,2]
[340787338,1729822231661,-434.38,0.00013769,2]
[340787339,1729822231670,-1064.566609,0.00013829,2]
[340787340,1729822231679,-424.14425734,0.00013832,2]
[340787341,1729822231689,-150.0,0.00013899,2]
[340787342,1729822231699,-300.0,0.00013899,2]
[340787343,1729822231708,-374.0993,0.000139,2]
[340787344,1729822231717,-1063.2343,0.000139,2]
[340787345,1729822231727,-433.5912,0.000139,2]
[340787346,1729822231736,-9732.4602773,0.000139,2]
[340787347,1729822231745,-174.36070996,0.000139,2]
[340787348,1729822231755,-385.48031571,0.00013973,2]
[340787349,1729822231764,-22931.66945633,0.00014,2]
[340787351,1729822237496,-337.87669849,0.00014,2]
[340787352,1729822237874,-755.41195691,0.00014,2]
[340787353,1729822237886,-1912.76522602,0.00014,2]
[340787354,1729822237922,-11635.07901512,0.00014,2]
[340787355,1729822237935,-998.24846091,0.00014,2]
[340787359,1729822239706,-378.51499999,0.00014,2]
[340787360,1729822239718,-559.38,0.00014,2]
[340787361,1729822239730,-254797.07235627,0.00014,2]
[340787362,1729822239742,-350.0,0.00014,2]
[340787363,1729822239752,-31384.5952461,0.00014023,2]
[340787364,1729822239763,-58385.6821071,0.00014033,2]
[340787365,1729822239772,-6276.91904922,0.00014043,2]
[340787366,1729822239782,-8651.0238238,0.00014053,2]
[340787367,1729822239791,-3138.45952461,0.00014053,2]
[340787368,1729822239800,-3295.4382336,0.00014063,2]
[340787369,1729822239810,-206.66402455,0.0001415,2]
[340787370,1729822239819,-516.16169818,0.0001415,2]
[340787371,1729822239830,-18830.7571477,0.00014151,2]
[340787372,1729822239840,-250.0,0.00014157,2]
[340787373,1729822239850,-23900.0,0.00014161,2]
[340787374,1729822239860,-501.11511823,0.00014173,2]
[340787375,1729822239872,-250.0,0.00014316,2]
[340787376,1729822239883,-21969.2166723,0.00014457,2]
[340787377,1729822239893,-28341.90535367,0.00014467,2]
[340787378,1729822239903,-500.0,0.00014473,2]
[340787379,1729822239913,-6276.91904922,0.0001449,2]
[340787380,1729822239923,-1990.69231548,0.000145,2]
[340787381,1729822239933,-5126.80909455,0.000145,2]
[340787382,1729822239943,-1834.23455162,0.000145,2]
[340787383,1729822239953,-1000.0,0.000146,2]
[340787384,1729822239962,-403.84728408,0.000149,2]
[340787385,1729822239971,-3138.45952461,0.00014978,2]
[340787386,1729822239982,-43938.4333445,0.0001498,2]
[340787387,1729822239991,-1000.0,0.00014988,2]
[340787388,1729822240001,-3138.45952461,0.0001499,2]
[340787389,1729822240011,-39467.1742273,0.0001499,2]
[340787390,1729822240020,-510.00505378,0.00015,2]
[340787391,1729822240031,-17722.2710189,0.00015,2]
[340787392,1729822240047,-4013.7549683,0.00015,2]
[340787393,1729822240060,-590.80399314,0.00015,2]
[340787412,1729822242666,-6816.93542232,0.00015,2]
[340787413,1729822242684,-287.0999999,0.00015,2]
[340787415,1729822243000,-827.15439571,0.00015,2]
[340787416,1729822243012,-838.42999911,0.00015,2]
[340787418,1729822243023,-429.49800015,0.00015,2]
[340787420,1729822243034,-2101.20800608,0.00015,2]
[340787423,1729822245544,-611.804,0.00015,2]
[340787424,1729822245756,-6372.4344052,0.00015,2]
[340787425,1729822245768,-7998.32730651,0.00015,2]
[340787426,1729822245780,-1198.09931481,0.00015,2]
[340787428,1729822681741,164.64,0.00024877,30]
[340787439,1729823108709,206.46093995,0.00042744,90]
[340787440,1729823142639,151.60973913,0.00042744,120]
[340787441,1729823143534,13452.57614855,0.00042744,30]
[340787451,1729823256450,243.6812719,0.00042744,120]
[340787452,1729823274325,249.95462988,0.00042744,120]
[340787453,1729823276727,5792.74093364,0.00042744,120]
[340787459,1729823314875,1753.21852346,0.00010998,2]
[340787460,1729823316396,154.85789261,0.00042744,45]
[340787461,1729823318208,1420.36969628,0.00042744,120]
[340787473,1729823431628,-150.0,0.00013989,2]
[340787475,1729823431639,-27293.72529656,0.0001399,2]
[340787476,1729823431650,-501.99413057,0.0001399,2]
[340787484,1729823431747,-7224.38589391,0.0001399,2]
[340787485,1729823431759,-1113.503638,0.0001399,2]
[340787486,1729823431870,-526.66203378,0.0001399,2]
[340787487,1729823431883,-397.09512393,0.0001399,2]
[340787488,1729823431896,-4424.95367649,0.0001399,2]
[340787489,1729823431907,-919.70999,0.0001399,2]
[340787490,1729823431982,-1233.71751728,0.0001399,2]
[340787491,1729823431994,-2856.53146261,0.0001399,2]
[340787492,1729823432007,-9652.37778613,0.0001399,2]
[340787493,1729823432019,-432.92,0.0001399,2]
[340787498,1729823437832,-2749.56740305,0.0001399,2]
[340787499,1729823437845,-823.51516831,0.0001399,2]
[340787500,1729823437858,-2820.66603228,0.0001399,2]
[340787501,1729823437869,-3010.41932053,0.0001399,2]
[340787502,1729823437955,-1682.74138119,0.0001399,2]
[340787503,1729823438075,-879.25074215,0.0001399,2]
[340787504,1729823438210,-24295.57467505,0.0001399,2]
[340787506,1729823438221,-439.29534987,0.0001399,2]
[340787544,1729823439725,-1886.52,0.0001399,2]
[340787545,1729823439738,-7149.812,0.0001399,2]
[340787549,1729823440031,-1213.89761864,0.0001399,2]
[340787551,1729823440165,-34563.38284267,0.0001399,2]
[340787553,1729823440175,-19303.676823,0.0001399,2]
[340787555,1729823440185,-206.66402455,0.00013999,2]
[340787556,1729823440196,-562.08144206,0.00013999,2]
[340787558,1729823440205,-237.40869069,0.00013999,2]
[340787560,1729823440215,-277422.02916474,0.00014,2]
[340787812,1729823442812,-1711.80000004,0.00014,2]
[340787816,1729823442840,-20725.49320934,0.00014,2]
[340787847,1729823443128,-5388.63959752,0.00014,2]
[340787948,1729823445709,-1346.45,0.00014,2]
[340787949,1729823445997,-58695.77211319,0.00014,2]
[340787950,1729823668594,1933.0,0.00024,120]
[340787951,1729823780807,250.0,0.0001,2]
[340787952,1729823781716,300.0,0.00012,2]
[340787957,1729824016674,201.10210011,0.00042751,30]
[340788210,1729824316996,2000.0,0.00025,29]
[340788211,1729824370369,2000.0,0.00025,29]
[340788212,1729824370666,2000.0,0.00025,29]
[340788213,1729824474655,-410.41,0.0001298,2]
[340788214,1729824474681,-1199.82481248,0.00013799,2]
[340788215,1729824474705,-9289.47495686,0.000139,2]
[340788216,1729824474728,-172.85156927,0.000139,2]
[340788218,1729824544133,-500.0,0.00013973,2]
[340788219,1729824544160,-237.40869069,0.00013999,2]
[340788220,1729824544184,-168.62443262,0.00013999,2]
[340788221,1729824544208,-150.0,0.00013999,2]
[340788222,1729824544233,-6643.96687669,0.00014,2]
[340788232,1729824637910,-300.0,0.00013999,2]
[340788233,1729824637919,-5719.83936661,0.00014,2]
[340788234,1729824638244,-13840.31022805,0.00014,2]
[340788236,1729824638256,-31925.2012,0.00014,2]
[340788237,1729824638268,-13565.0,0.00014,2]
[340788238,1729824638280,-24528.90035,0.00014,2]
[340788239,1729824638291,-54170.55,0.00014,2]
[340788240,1729824638304,-9553.154996,0.00014,2]
[340788241,1729824638317,-9084.2900005,0.00014,2]
[340788242,1729824638330,-13724.235,0.00014,2]
[340788243,1729824638343,-1384.75,0.00014,2]
[340788244,1729824638354,-601.02902956,0.00014,2]
[340788245,1729824638365,-345.0,0.00014,2]
[340788254,1729824640365,-311.69129605,0.00014,2]
[340788255,1729824640379,-274565.30604476,0.00014,2]
[340788256,1729824640389,-350.0,0.00014,2]
[340788257,1729824640399,-1000.0,0.000143,2]
[340788258,1729824640408,-1000.0,0.000144,2]
[340788259,1729824640416,-1044.0,0.000144,2]
[340788260,1729824640426,-1000.0,0.000144,2]
[340788261,1729824640435,-1991.89017672,0.000145,2]
[340788262,1729824640444,-5129.00218788,0.000145,2]
[340788263,1729824640454,-1834.23455162,0.000145,2]
[340788264,1729824640463,-158.83556465,0.000146,2]
[340788265,1729824640472,-23900.0,0.00014674,2]
[340788266,1729824640482,-1014.0,0.000148,2]
[340788267,1729824640491,-4246.11,0.00014828,2]
[340788268,1729824640500,-250.0,0.00014943,2]
[340788270,1729824640509,-201.75,0.00014951,2]
[340788272,1729824640518,-500.0,0.00014973,2]
[340788274,1729824640528,-38470.4665611,0.0001499,2]
[340788276,1729824640537,-118149.89312843,0.00015,2]
[340788278,1729824640546,-510.24346622,0.00015,2]
[340788280,1729824640557,-22669.02262422,0.00015,2]
[340788282,1729824640566,-250.0,0.00015067,2]
[340788284,1729824640576,-8212.919283,0.00015109,2]
[340788286,1729824640585,-155.0,0.00015119,2]
[340788288,1729824640594,-410.41,0.00015244,2]
[340788290,1729824640603,-497.44090118,0.00015342,2]
[340788292,1729824640612,-159.47,0.00015342,2]
[340788294,1729824640622,-207.02,0.00015342,2]
[340788296,1729824640631,-156.35,0.00015342,2]
[340788298,1729824640640,-6411.74442685,0.00015541,2]
[340788300,1729824640649,-6411.74442685,0.0001568,2]
[340788302,1729824640658,-6411.74442685,0.00015681,2]
[340788304,1729824640667,-5956.65790798,0.00015691,2]
[340788307,1729824640686,-602.22,0.00015691,2]
[340788314,1729824642946,-2954.73832486,0.00015691,2]
[340788315,1729824643136,-266.92751333,0.00015691,2]
[340788316,1729824643149,-1177.2078038,0.00015691,2]
[340788330,1729824645885,-583.784532,0.00015691,2]
[340788332,1729824645895,-762.335468,0.00015691,2]
[340788336,1729824646048,-1103.40183573,0.00015691,2]
[340788337,1729824646059,-639.0,0.000157,2]
[340788338,1729824646068,-151.0,0.00015701,2]
[340788339,1729824646078,-155.551202,0.00015701,2]
[340788340,1729824646087,-151.0,0.00015701,2]
[340788341,1729824646097,-151.0,0.00015701,2]
[340788342,1729824646106,-165.958142,0.00015701,2]
[340788343,1729824646115,-221.708742,0.00015701,2]
[340788344,1729824646124,-151.0,0.00015701,2]
[340788345,1729824646134,-151.0,0.00015701,2]
[340788346,1729824646143,-151.0,0.00015701,2]
[340788347,1729824646153,-153.130317,0.00015701,2]
[340788348,1729824646162,-156.32052,0.00015701,2]
[340788349,1729824646172,-154.997163,0.00015701,2]
[340788350,1729824646181,-120.09411827,0.00015701,2]
[340788351,1729824646193,-30.90588173,0.00015701,2]
[340788352,1729824646202,-151.0,0.00015701,2]
[340788354,1729824646211,-151.0,0.00015701,2]
[340788355,1729824646220,-156.024927,0.00015701,2]
[340788356,1729824646230,-39.68919627,0.00015701,2]
[340788360,1729824895194,999.999999,0.00042751,120]
[340788361,1729824909490,614.8479411,0.0001,2]
[340788362,1729825596408,185.1520589,0.0001,2]
[340788363,1729825596429,64.8479411,0.0001,2]
[340788364,1729825598219,-300.0,0.00012,2]
[340788374,1729825832100,-482.663428,0.00013631,2]
[340788375,1729825832112,-3393.06060353,0.000137,2]
[340788376,1729825832120,-468.13245307,0.000138,2]
[340788377,1729825832129,-635.55048545,0.000138,2]
[340788378,1729825832138,-3444.775,0.000139,2]
[340788379,1729825832147,-9012.00182205,0.000139,2]
[340788380,1729825832157,-350.0,0.00014,2]
[340788381,1729825832166,-450.16,0.00014824,2]
[340788382,1729825832177,-164.39,0.00015342,2]
[340788383,1729825832188,-9761.83794515,0.00015492,2]
[340788384,1729825832199,-424.14425734,0.00015567,2]
[340788385,1729825832209,-575.0,0.000156,2]
[340788386,1729825832220,-300.0,0.00015931,2]
[340788387,1729825832228,-12698.7262708,0.00015932,2]
[340788388,1729825832238,-53477.58599229,0.00015944,2]
[340788389,1729825832271,-5484.94931223,0.00015944,2]
[340788390,1729825832282,-812.9464343,0.00015944,2]
[340788391,1729825832293,-3012.42370077,0.00015944,2]
[340788392,1729825832306,-920.06431593,0.00015944,2]
[340788393,1729825832422,-29138.78780388,0.00015944,2]
[340788394,1729825832432,-497.44090118,0.00015973,2]
[340788395,1729825832443,-615.68103165,0.00015977,2]
[340788396,1729825832454,-400.0,0.00016,2]
[340788397,1729825832464,-23900.0,0.00016579,2]
[340788398,1729825832475,-9806.51271428,0.00016616,2]
[340788399,1729825832485,-250.0,0.00016716,2]
[340788400,1729825832496,-250.0,0.00016987,2]
[340788401,1729825832507,-450.16,0.00017088,2]
[340788402,1729825832519,-1000.0,0.00017135,2]
[340788403,1729825832528,-250.0,0.00017345,2]
[340788404,1729825832538,-3013.23396251,0.00017432,2]
[340788405,1729825832549,-150.0,0.00017796,2]
[340788406,1729825832560,-450.0,0.00018,2]
[340788407,1729825832570,-5894.0,0.00018469,2]
[340788408,1729825832580,-1152.0,0.00018469,2]
[340788409,1729825832589,-223.561,0.00018469,2]
[340788410,1729825832598,-228.744,0.00018469,2]
[340788411,1729825832607,-13553.0,0.00018469,2]
[340788412,1729825832618,-250.0,0.00018599,2]
[340788413,1729825832627,-220.0,0.00018599,2]
[340788414,1729825832636,-15610.66563971,0.00018633,2]
[340788415,1729825832648,-250.0,0.00018769,2]
[340788416,1729825832660,-272.656,0.00018769,2]
[340788417,1729825832669,-264.337,0.00018769,2]
[340788418,1729825832679,-287.135,0.00018769,2]
[340788419,1729825832689,-164.175,0.00018769,2]
[340788420,1729825832699,-150.0,0.00018769,2]
[340788421,1729825832708,-200.0,0.00018769,2]
[340788422,1729825832718,-250.0,0.00018769,2]
[340788423,1729825832729,-281.157,0.00018769,2]
[340788424,1729825832739,-250.0,0.00018769,2]
[340788425,1729825832749,-1247.0,0.00018769,2]
[340788426,1729825832759,-813.0,0.00018769,2]
[340788427,1729825832768,-453.177,0.00018769,2]
[340788428,1729825832778,-561.006,0.00018769,2]
[340788429,1729825832787,-558.893,0.00018769,2]
[340788430,1729825832797,-937.0,0.00018769,2]
[340788431,1729825832809,-3362.0,0.00018769,2]
[340788432,1729825832819,-1912.0,0.00018769,2]
[340788433,1729825832828,-810.0,0.00018769,2]
[340788434,1729825832838,-501.11511823,0.00018773,2]
[340788435,1729825832847,-150.0,0.00019166,2]
[340788436,1729825832857,-180.19,0.00019178,2]
[340788437,1729825832867,-200.0,0.00019178,2]
[340788438,1729825832877,-1000.0,0.00019277,2]
[340788439,1729825832887,-450.16,0.00019352,2]
[340788440,1729825832896,-500.0,0.0002,2]
[340788441,1729825832907,-1000.0,0.00021419,2]
[340788442,1729825832917,-5894.0,0.00021469,2]
[340788443,1729825832927,-827.797,0.00021469,2]
[340788444,1729825832936,-13553.0,0.00021469,2]
[340788445,1729825832945,-150.0,0.00021599,2]
[340788446,1729825832955,-450.16,0.00021616,2]
[340788447,1729825832965,-207.02,0.00021745,2]
[340788448,1729825832975,-9806.51271422,0.00021759,2]
[340788449,1729825832984,-150.0,0.00021769,2]
[340788450,1729825832993,-150.0,0.00021769,2]
[340788451,1729825833003,-150.0,0.00021769,2]
[340788452,1729825833012,-150.0,0.00021769,2]
[340788453,1729825833022,-150.0,0.00021769,2]
[340788454,1729825833031,-150.0,0.00021769,2]
[340788455,1729825833040,-1247.0,0.00021769,2]
[340788456,1729825833050,-813.0,0.00021769,2]
[340788457,1729825833059,-450.0,0.00021769,2]
[340788458,1729825833068,-561.0,0.00021769,2]
[340788459,1729825833078,-556.0,0.00021769,2]
[340788460,1729825833092,-937.0,0.00021769,2]
[340788461,1729825833107,-3362.0,0.00021769,2]
[340788462,1729825833122,-1912.0,0.00021769,2]
[340788463,1729825833133,-810.0,0.00021769,2]
[340788464,1729825833145,-744.0,0.00021918,2]
[340788465,1729825833159,-550.0,0.00022,2]
[340788466,1729825833171,-174.0,0.00023,2]
[340788467,1729825833184,-570.0,0.00023385,2]
[340788468,1729825833197,-151.18489893,0.00023385,2]
[340788469,1729825833212,-155.06689649,0.00023385,2]
[340788470,1729825833224,-150.5071022,0.00023385,2]
[340788471,1729825833238,-150.0,0.00023385,2]
[340788472,1729825833250,-150.0,0.00023385,2]
[340788473,1729825833263,-548.0,0.00023385,2]
[340788474,1729825833275,-1000.0,0.00023561,2]
[340788475,1729825833289,-450.16,0.0002388,2]
[340788476,1729825833302,-600.0,0.00024,2]
[340788477,1729825833316,-175.0,0.00024164,2]
[340788478,1729825833327,-2708.0,0.00024295,2]
[340788479,1729825833338,-5894.0,0.00024469,2]
[340788480,1729825833351,-13553.0,0.00024469,2]
[340788481,1729825833362,-2903.0,0.00024658,2]
[340788482,1729825833375,-1000.0,0.00024658,2]
[340788483,1729825833388,-150.0,0.00024769,2]
[340788484,1729825833401,-150.0,0.00024769,2]
[340788485,1729825833415,-150.0,0.00024769,2]
[340788486,1729825833429,-1247.0,0.00024769,2]
[340788487,1729825833443,-813.0,0.00024769,2]
[340788488,1729825833455,-450.0,0.00024769,2]
[340788489,1729825833466,-561.0,0.00024769,2]
[340788490,1729825833477,-556.0,0.00024769,2]
[340788491,1729825833490,-937.0,0.00024769,2]
[340788492,1729825833504,-3362.0,0.00024769,2]
[340788493,1729825833518,-1912.0,0.00024769,2]
[340788494,1729825833528,-810.0,0.00024769,2]
[340788495,1729825833541,-9447.61346232,0.00024877,2]
[340788496,1729825833557,-6012.97006698,0.00024877,2]
[340788497,1729825833571,-5822.4506147,0.00024877,2]
[340788498,1729825833583,-155.341442,0.00024894,7]
[340788499,1729825833594,-1055.574,0.00025,8]
[340788500,1729825833605,-160.62350672,0.0002509,120]
[340788501,1729825833618,-1000.0,0.00025703,2]
[340788502,1729825833630,-650.0,0.00026,2]
[340788503,1729825833641,-570.0,0.00026125,2]
[340788504,1729825833653,-150.0,0.00026125,2]
[340788505,1729825833665,-150.0,0.00026125,2]
[340788506,1729825833677,-548.0,0.00026125,2]
[340788507,1729825833690,-450.16,0.00026143,2]
[340788508,1729825833701,-154.307594,0.00026337,7]
[340788509,1729825833713,-157.804646,0.00026387,7]
[340788510,1729825833724,-156.35,0.00026401,2]
[340788511,1729825833736,-9806.51271422,0.00026901,2]
[340788512,1729825833747,-241.40569184,0.00027,120]
[340788513,1729825833759,-159.62,0.00027397,2]
[340788514,1729825833770,-681.3,0.00027397,10]
[340788515,1729825833782,-567.75,0.00027397,10]
[340788516,1729825833793,-5894.0,0.00027469,2]
[340788517,1729825833805,-13219.289,0.00027469,2]
[340788518,1729825833816,-151.0,0.00027599,7]
[340788519,1729825833828,-151.0,0.00027599,7]
[340788520,1729825833839,-178.29816964,0.00027669,2]
[340788521,1729825833851,-500.0,0.00027688,2]
[340788522,1729825833864,-151.0,0.00027769,7]
[340788523,1729825833875,-175.96774,0.00027769,7]
[340788524,1729825833887,-151.0,0.00027769,7]
[340788525,1729825833898,-166.920553,0.00027769,7]
[340788526,1729825833910,-151.0,0.00027769,7]
[340788527,1729825833922,-151.0,0.00027769,7]
[340788528,1729825833933,-1109.709,0.00027769,2]
[340788529,1729825833945,-813.0,0.00027769,2]
[340788530,1729825833957,-450.0,0.00027769,2]
[340788531,1729825833968,-561.0,0.00027769,2]
[340788532,1729825833980,-556.0,0.00027769,2]
[340788533,1729825833991,-227.898,0.00027769,2]
[340788534,1729825834003,-3362.0,0.00027769,2]
[340788535,1729825834014,-1912.0,0.00027769,2]
[340788536,1729825834026,-810.0,0.00027769,2]
[340788537,1729825834037,-700.0,0.00028,2]
[340788538,1729825834049,-207.02,0.00028147,2]
[340788539,1729825834061,-162.694496,0.00028366,7]
[340788540,1729825834072,-151.0,0.00028366,7]
[340788541,1729825834084,-155.960639,0.00028366,7]
[340788542,1729825834096,-153.959498,0.00028366,7]
[340788543,1729825834109,-450.16,0.00028407,2]
[340788544,1729825834121,-159.62,0.00028767,2]
[340788545,1729825834132,-164.39,0.00028858,2]
[340788546,1729825834141,-287.0,0.00028864,5]
[340788547,1729825834151,-570.0,0.00028864,2]
[340788548,1729825834161,-201.76128999,0.00028864,2]
[340788549,1729825834170,-150.0,0.00028864,2]
[340788550,1729825834180,-548.0,0.00028864,2]
[340788551,1729825834328,-151.0,0.00029056,7]
[340788552,1729825834346,-159.133466,0.00029056,7]
[340788553,1729825834356,-152.035591,0.00029056,7]
[340788554,1729825834365,-153.375868,0.00029056,7]
[340788555,1729825834375,-151.0,0.00029056,7]
[340788556,1729825834384,-151.0,0.00029056,7]
[340788557,1729825834393,-554.595305,0.00029056,7]
[340788558,1729825834402,-554.595305,0.00029056,7]
[340788559,1729825834413,-151.0,0.00029056,7]
[340788560,1729825834423,-151.0,0.00029056,7]
[340788561,1729825834432,-151.0,0.00029056,7]
[340788562,1729825834441,-151.0,0.0002972,7]
[340788563,1729825834451,-210.453324,0.0002972,7]
[340788564,1729825834462,-211.01385103,0.0003,2]
[340788565,1729825834471,-196.33675329,0.0003,2]
[340788566,1729825834480,-151.0,0.0003,7]
[340788567,1729825834490,-750.0,0.0003,2]
[340788568,1729825834500,-159.62,0.00030137,2]
[340788569,1729825834510,-151.0,0.00030418,7]
[340788570,1729825834519,-1000.0,0.00030428,2]
[340788571,1729825834528,-4538.441,0.00030469,2]
[340788572,1729825834537,-217.0,0.00030499,2]
[340788573,1729825834547,-396.95463092,0.00030499,2]
[340788574,1729825834556,-150.0,0.00030573,5]
[340788575,1729825834565,-156.981997,0.00030589,7]
[340788576,1729825834575,-500.0,0.00030599,2]
[340788577,1729825834584,-500.0,0.00030599,2]
[340788578,1729825834593,-500.0,0.00030599,2]
[340788579,1729825834602,-500.0,0.00030599,2]
[340788580,1729825834611,-500.0,0.00030599,2]
[340788581,1729825834621,-500.0,0.00030599,2]
[340788582,1729825834631,-500.0,0.00030599,2]
[340788583,1729825834640,-500.0,0.00030599,2]
[340788584,1729825834649,-500.0,0.00030599,2]
[340788585,1729825834659,-500.0,0.00030599,2]
[340788586,1729825834668,-500.0,0.00030599,2]
[340788587,1729825834677,-500.0,0.00030599,2]
[340788588,1729825834686,-500.0,0.00030599,2]
[340788589,1729825834696,-500.0,0.00030599,2]
[340788590,1729825834705,-500.0,0.00030599,2]
[340788591,1729825834714,-500.0,0.00030599,2]
[340788592,1729825834723,-500.0,0.00030599,2]
[340788593,1729825834732,-500.0,0.00030599,2]
[340788594,1729825834742,-500.0,0.00030599,2]
[340788595,1729825834751,-500.0,0.00030599,2]
[340788596,1729825834760,-500.0,0.00030599,2]
[340788597,1729825834770,-500.0,0.00030599,2]
[340788598,1729825834779,-500.0,0.00030599,2]
[340788599,1729825834789,-500.0,0.00030599,2]
[340788600,1729825834799,-500.0,0.00030599,2]
[340788601,1729825834808,-500.0,0.00030599,2]
[340788602,1729825834817,-500.0,0.00030599,2]
[340788603,1729825834827,-500.0,0.00030599,2]
[340788604,1729825834836,-500.0,0.00030599,2]
[340788605,1729825834845,-500.0,0.00030599,2]
[340788606,1729825834854,-500.0,0.00030599,2]
[340788607,1729825834864,-500.0,0.00030599,2]
[340788608,1729825834873,-500.0,0.00030599,2]
[340788609,1729825834883,-500.0,0.00030599,2]
[340788610,1729825834893,-500.0,0.00030599,2]
[340788611,1729825834902,-500.0,0.00030599,2]
[340788612,1729825834912,-500.0,0.00030599,2]
[340788613,1729825834921,-500.0,0.00030599,2]
[340788614,1729825834930,-500.0,0.00030599,2]
[340788615,1729825834939,-500.0,0.00030599,2]
[340788616,1729825834949,-500.0,0.00030599,2]
[340788617,1729825834958,-500.0,0.00030599,2]
[340788618,1729825834967,-500.0,0.00030599,2]
[340788619,1729825834977,-500.0,0.00030599,2]
[340788620,1729825834986,-500.0,0.00030599,2]
[340788621,1729825834996,-500.0,0.00030599,2]
[340788622,1729825835005,-500.0,0.00030599,2]
[340788623,1729825835014,-500.0,0.00030599,2]
[340788624,1729825835023,-500.0,0.00030599,2]
[340788625,1729825835033,-500.0,0.00030599,2]
[340788626,1729825835042,-500.0,0.00030599,2]
[340788627,1729825835051,-500.0,0.00030599,2]
[340788628,1729825835060,-500.0,0.00030599,2]
[340788629,1729825835069,-500.0,0.00030599,2]